[Event "FIDE Womens Grand Swiss 2023"]
[Site "Douglas/Isle of Man"]
[Date "2023.11.01"]
[Round "7.6"]
[White "Munguntuul, Batkhuyag"]
[Black "Garifullina, Leya"]
[Result "1/2-1/2"]
[ECO "B90"]
[WhiteElo "2366"]
[BlackElo "2402"]
[Annotator "ChessBase"]
[PlyCount "76"]
[EventDate "2023.10.04"]
[EventType "swiss"]
[EventCountry "GBR"]
[SourceTitle "playchess.com"]
[Source "ChessBase"]
[SourceQuality "1"]
[TimeControl "40/6000+30:20/3000+30:900+30"]

1. e4 {[%emt 0:10:02]} c5 {[%emt 0:10:10]} 2. Nf3 {[%emt 0:00:04]} d6 {[%emt 0:00:18]} 3. d4 {[%emt 0:00:06]} cxd4 {[%emt 0:00:10]} 4. Nxd4 {[%emt 0:00:04]} Nf6 {[%emt 0:00:08]} 5. Nc3 {[%emt 0:00:03]} a6 {[%emt 0:00:19]} 6. Be3 {[%emt 0:00:07]} e5 {[%emt 0:00:07]} 7. Nf3 {[%emt 0:00:05]} Be7 {[%emt 0:00:23]} 8. Bc4 {[%emt 0:00:08]} Be6 {[%emt 0:00:36]} 9. Bb3 {[%emt 0:00:26]} Nbd7 {[%emt 0:01:26]} 10. O-O {[%emt 0:09:57]} b5 {[%emt 0:08:33]} 11. Qd3 {[%emt 0:11:33]} Qc7 {[%emt 0:03:51]} 12. Rfd1 {[%emt 0:06:49]} O-O {[%emt 0:10:24]} 13. Bg5 {[%emt 0:29:20]} Rfc8 {[%emt 0:13:22]} 14. Bxf6 {[%emt 0:07:46]} Nxf6 {[%emt 0:04:22]} 15. a3 {[%emt 0:03:07]} Bc4 {[%emt 0:05:55]} 16. Qe3 {[%emt 0:02:04]} Qb7 {[%emt 0:05:50]} 17. h3 {[%emt 0:03:50]} a5 {[%emt 0:05:19]} 18. Nd2 {[%emt 0:06:22]} Bd8 {[%emt 0:10:12]} 19. Bxc4 {[%emt 0:02:20]} bxc4 {[%emt 0:00:05]} 20. Na4 {[%emt 0:00:28]} c3 {[%emt 0:03:42]} 21. Nxc3 {[%emt 0:00:45]} Qxb2 {[%emt 0:00:11]} 22. Na4 {[%emt 0:04:05]} Qxc2 {[%emt 0:04:53]} 23. Nb6 {[%emt 0:03:17]} Rc3 {[%emt 0:04:45]} 24. Rdc1 {[%emt 0:00:21]} Bxb6 {[%emt 0:02:37]} 25. Qxc3 {[%emt 0:00:35]} Qxc3 {[%emt 0:00:18]} 26. Rxc3 {[%emt 0:00:01]} Bd4 {[%emt 0:00:06]} 27. Rac1 {[%emt 0:00:07]} Bxc3 {[%emt 0:00:05]} 28. Rxc3 {[%emt 0:00:01]} Kf8 {[%emt 0:00:49]} 29. f3 {[%emt 0:01:23]} Rd8 {[%emt 0:01:52]} 30. a4 {[%emt 0:04:14]} d5 {[%emt 0:07:08]} 31. exd5 {[%emt 0:00:07]} Nxd5 {[%emt 0:00:26]} 32. Rd3 {[%emt 0:00:45]} Ke8 {[%emt 0:01:33]} 33. Nc4 {[%emt 0:00:10]} f6 {[%emt 0:01:20]} 34. Nxa5 {[%emt 0:00:05]} Nb6 {[%emt 0:00:35]} 35. Rxd8+ {[%emt 0:01:09]} Kxd8 {[%emt 0:00:02]} 36. Nb7+ {[%emt 0:00:13]} Kc7 {[%emt 0:00:05]} 37. Nc5 {[%emt 0:00:06]} Kc6 {[%emt 0:00:02]} 38. Ne6 {[%emt 0:00:12]} Nxa4 {[%emt 0:01:19]} 1/2-1/2

[Event "FIDE Womens Grand Swiss 2023"]
[Site "Douglas/Isle of Man"]
[Date "2023.11.01"]
[Round "7.7"]
[White "Shuvalova, Polina"]
[Black "Fataliyeva, Ulviyya"]
[Result "1-0"]
[ECO "C54"]
[WhiteElo "2506"]
[BlackElo "2393"]
[Annotator "ChessBase"]
[PlyCount "125"]
[EventDate "2023.10.04"]
[EventType "swiss"]
[EventCountry "GBR"]
[SourceTitle "playchess.com"]
[Source "ChessBase"]
[SourceQuality "1"]
[TimeControl "40/6000+30:20/3000+30:900+30"]

1. e4 {[%emt 0:10:03]} e5 {[%emt 0:10:04]} 2. Nf3 {[%emt 0:00:05]} Nc6 {[%emt 0:00:03]} 3. Bc4 {[%emt 0:00:06]} Nf6 {[%emt 0:00:06]} 4. d3 {[%emt 0:00:04]} Bc5 {[%emt 0:00:04]} 5. O-O {[%emt 0:00:05]} d6 {[%emt 0:00:07]} 6. c3 {[%emt 0:00:14]} O-O {[%emt 0:00:10]} 7. h3 {[%emt 0:00:16]} a5 {[%emt 0:00:10]} 8. Re1 {[%emt 0:00:14]} h6 {[%emt 0:00:44]} 9. d4 {[%emt 0:01:44]} exd4 {[%emt 0:01:04]} 10. cxd4 {[%emt 0:00:17]} Bb4 {[%emt 0:00:15]} 11. Nc3 {[%emt 0:01:18]} Re8 {[%emt 0:04:33]} 12. Bd3 {[%emt 0:05:39]} d5 {[%emt 0:04:03]} 13. e5 {[%emt 0:06:24]} Ne4 {[%emt 0:01:53]} 14. Qc2 {[%emt 0:13:28]} Bf5 {[%emt 0:12:43]} 15. a3 {[%emt 0:01:42]} Bxc3 {[%emt 0:00:59]} 16. bxc3 {[%emt 0:00:05]} a4 {[%emt 0:00:25]} 17. Nh2 {[%emt 0:06:46]} Qh4 {[%emt 0:04:58]} 18. Be3 {[%emt 0:01:46]} Ne7 {[%emt 0:21:54]} 19. Rab1 {[%emt 0:04:43]} b6 {[%emt 0:01:22]} 20. Nf3 {[%emt 0:09:56]} Qh5 {[%emt 0:00:11]} 21. c4 {[%emt 0:00:04]} c6 {[%emt 0:18:15]} 22. Rxb6 {[%emt 0:09:38]} Bxh3 {[%emt 0:01:04]} 23. Bxe4 {[%emt 0:00:24]} dxe4 {[%emt 0:01:15]} 24. Qxe4 {[%emt 0:00:05]} Bf5 {[%emt 0:03:04]} 25. Qf4 {[%emt 0:00:47]} Be6 {[%emt 0:05:45]} 26. Nd2 {[%emt 0:03:31]} Qg6 {[%emt 0:00:19]} 27. Qe4 {[%emt 0:04:41]} Qxe4 {[%emt 0:01:03]} 28. Nxe4 {[%emt 0:01:35]} Reb8 {[%emt 0:00:04]} 29. Reb1 {[%emt 0:03:08]} Rxb6 {[%emt 0:00:11]} 30. Rxb6 {[%emt 0:00:03]} Bxc4 {[%emt 0:00:31]} 31. Rb7 {[%emt 0:04:47]} Nf5 {[%emt 0:07:38]} 32. Rb4 {[%emt 0:04:41]} Bd3 {[%emt 0:03:20]} 33. Nc5 {[%emt 0:00:15]} Bc2 {[%emt 0:00:31]} 34. Kf1 {[%emt 0:01:39]} Ne7 {[%emt 0:01:02]} 35. Rb7 {[%emt 0:01:26]} Nd5 {[%emt 0:01:00]} 36. Bd2 {[%emt 0:00:34]} Bf5 {[%emt 0:01:24]} 37. f3 {[%emt 0:00:27]} Bc8 {[%emt 0:00:31]} 38. Rb2 {[%emt 0:00:28]} Nc7 {[%emt 0:03:24]} 39. Rb4 {[%emt 0:00:55]} Ba6+ {[%emt 0:00:24]} 40. Nxa6 {[%emt 0:06:06]} Rxa6 {[%emt 0:00:01]} 41. Rb8+ {[%emt 0:50:21]} Kh7 {[%emt 0:50:01]} 42. Rb7 {[%emt 0:00:05]} Nb5 {[%emt 0:03:18]} 43. d5 {[%emt 0:08:47]} Nxa3 {[%emt 0:00:40]} 44. d6 {[%emt 0:00:13]} Nb5 {[%emt 0:00:00]} 45. d7 {[%emt 0:00:00]} Ra8 {[%emt 0:00:00]} 46. e6 {[%emt 0:00:00]} a3 {[%emt 0:00:00]} 47. Rxb5 {[%emt 0:00:00]} a2 {[%emt 0:00:00]} 48. Bc3 {[%emt 0:00:00]} fxe6 {[%emt 0:00:00]} 49. Ra5 {[%emt 0:00:00]} Rd8 {[%emt 0:00:00]} 50. Rxa2 {[%emt 0:00:00]} Rxd7 {[%emt 0:00:00]} 51. Ra6 {[%emt 0:00:00]} Kg6 {[%emt 0:00:00]} 52. Rxc6 {[%emt 0:00:00]} Kf7 {[%emt 0:00:00]} 53. Be5 {[%emt 0:00:00]} Rd1+ {[%emt 0:00:00]} 54. Ke2 {[%emt 0:00:00]} Rd5 {[%emt 0:00:00]} 55. Rc7+ {[%emt 0:00:00]} Kg8 {[%emt 0:00:00]} 56. Bxg7 {[%emt 0:00:00]} Rg5 {[%emt 0:00:00]} 57. Bxh6 {[%emt 0:00:00]} Rxg2+ {[%emt 0:00:00]} 58. Kd3 {[%emt 0:00:00]} Rg6 {[%emt 0:00:00]} 59. Bf4 {[%emt 0:00:00]} Kf8 {[%emt 0:00:00]} 60. Bd6+ {[%emt 0:00:00]} Ke8 {[%emt 0:00:00]} 61. Ke4 {[%emt 0:03:40]} Kd8 {[%emt 0:13:35]} 62. Re7 {[%emt 0:00:33]} Rh6 {[%emt 0:01:24]} 63. f4 {[%emt 0:00:05]} 1-0

[Event "FIDE Womens Grand Swiss 2023"]
[Site "Douglas/Isle of Man"]
[Date "2023.11.01"]
[Round "7.8"]
[White "Bulmaga, Irina"]
[Black "Dronavalli, Harika"]
[Result "1-0"]
[ECO "C54"]
[WhiteElo "2423"]
[BlackElo "2502"]
[Annotator "ChessBase"]
[PlyCount "92"]
[EventDate "2023.10.04"]
[EventType "swiss"]
[EventCountry "GBR"]
[SourceTitle "playchess.com"]
[Source "ChessBase"]
[SourceQuality "1"]
[TimeControl "40/6000+30:20/3000+30:900+30"]

1. e4 {[%emt 0:10:05]} e5 {[%emt 0:10:20]} 2. Nf3 {[%emt 0:00:11]} Nc6 {[%emt 0:00:15]} 3. Bc4 {[%emt 0:00:14]} Bc5 {[%emt 0:00:20]} 4. c3 {[%emt 0:00:15]} Nf6 {[%emt 0:01:50]} 5. d4 {[%emt 0:00:29]} exd4 {[%emt 0:00:26]} 6. e5 {[%emt 0:00:22]} d5 {[%emt 0:01:31]} 7. Be2 {[%emt 0:00:21]} Ne4 {[%emt 0:01:42]} 8. cxd4 {[%emt 0:00:16]} Bb6 {[%emt 0:03:31]} 9. O-O {[%emt 0:01:24]} O-O {[%emt 0:00:23]} 10. Nc3 {[%emt 0:00:48]} Be6 {[%emt 0:04:49]} 11. Be3 {[%emt 0:03:53]} f6 {[%emt 0:00:38]} 12. Bb5 {[%emt 0:14:47]} Bg4 {[%emt 0:20:50]} 13. exf6 {[%emt 0:11:40]} Nxf6 {[%emt 0:09:08]} 14. Be2 {[%emt 0:02:57]} Qd6 {[%emt 0:02:37]} 15. h3 {[%emt 0:04:07]} Bh5 {[%emt 0:00:34]} 16. Rc1 {[%emt 0:10:06]} Rae8 {[%emt 0:03:54]} 17. a3 {[%emt 0:02:44]} Kh8 {[%emt 0:23:08]} 18. Na4 {[%emt 0:20:24]} Ne4 {[%emt 0:00:00]} 19. Nxb6 {[%emt 0:05:20]} cxb6 {[%emt 0:00:00]} 20. g4 {[%emt 0:05:10]} Bg6 {[%emt 0:00:00]} 21. Bb5 {[%emt 0:01:02]} Re7 {[%emt 0:03:53]} 22. Nh4 {[%emt 0:01:21]} Qf6 {[%emt 0:03:43]} 23. Nxg6+ {[%emt 0:00:41]} hxg6 {[%emt 0:03:45]} 24. Kg2 {[%emt 0:01:24]} Qd6 {[%emt 0:00:36]} 25. Bd3 {[%emt 0:03:44]} Ref7 {[%emt 0:02:09]} 26. Rc2 {[%emt 0:03:21]} Ne7 {[%emt 0:02:13]} 27. Qe1 {[%emt 0:02:46]} Qf6 {[%emt 0:03:29]} 28. f3 {[%emt 0:00:33]} Nd6 {[%emt 0:00:11]} 29. h4 {[%emt 0:01:59]} Qe6 {[%emt 0:00:50]} 30. Re2 {[%emt 0:00:42]} Ne4 {[%emt 0:01:28]} 31. Bg1 {[%emt 0:02:13]} Qc6 {[%emt 0:02:36]} 32. Re3 {[%emt 0:00:19]} Qd7 {[%emt 0:02:58]} 33. fxe4 {[%emt 0:00:13]} Rxf1 {[%emt 0:00:02]} 34. Bxf1 {[%emt 0:00:11]} Qxg4+ {[%emt 0:00:10]} 35. Rg3 {[%emt 0:01:05]} Qf4 {[%emt 0:00:19]} 36. Bd3 {[%emt 0:00:16]} dxe4 {[%emt 0:01:37]} 37. Qxe4 {[%emt 0:00:15]} Qf7 {[%emt 0:01:15]} 38. Qf3 {[%emt 0:00:34]} Qg8 {[%emt 0:00:39]} 39. Qe2 {[%emt 0:00:07]} Nd5 {[%emt 0:00:33]} 40. Be3 {[%emt 0:00:37]} Qe6 {[%emt 0:00:48]} 41. Bg5 {[%emt 0:51:00]} Qc6 {[%emt 0:50:48]} 42. Rf3 {[%emt 0:00:00]} Nf4+ {[%emt 0:00:00]} 43. Bxf4 {[%emt 0:00:00]} Rxf4 {[%emt 0:00:00]} 44. d5 {[%emt 0:00:00]} Rg4+ {[%emt 0:00:00]} 45. Kh3 {[%emt 0:00:00]} Qa4 {[%emt 0:00:00]} 46. Rf8+ {[%emt 0:00:00]} Kh7 {[%emt 0:00:00]} 1-0

[Event "FIDE Womens Grand Swiss 2023"]
[Site "Douglas/Isle of Man"]
[Date "2023.11.01"]
[Round "7.9"]
[White "Cori T., Deysi"]
[Black "Mammadzada, Gunay"]
[Result "1-0"]
[ECO "A06"]
[WhiteElo "2367"]
[BlackElo "2441"]
[Annotator "ChessBase"]
[PlyCount "81"]
[EventDate "2023.10.04"]
[EventType "swiss"]
[EventCountry "GBR"]
[SourceTitle "playchess.com"]
[Source "ChessBase"]
[SourceQuality "1"]
[TimeControl "40/6000+30:20/3000+30:900+30"]

1. Nf3 {[%emt 0:10:29]} d5 {[%emt 0:10:39]} 2. e3 {[%emt 0:00:43]} c5 {[%emt 0:05:28]} 3. b3 {[%emt 0:06:58]} Nc6 {[%emt 0:07:18]} 4. Bb2 {[%emt 0:00:32]} e6 {[%emt 0:05:11]} 5. Bb5 {[%emt 0:01:04]} Bd7 {[%emt 0:01:02]} 6. O-O {[%emt 0:00:52]} Nf6 {[%emt 0:00:10]} 7. d3 {[%emt 0:01:46]} Be7 {[%emt 0:00:30]} 8. c4 {[%emt 0:08:54]} O-O {[%emt 0:04:47]} 9. Nc3 {[%emt 0:03:12]} a6 {[%emt 0:06:21]} 10. Bxc6 {[%emt 0:05:32]} Bxc6 {[%emt 0:00:05]} 11. Ne5 {[%emt 0:00:03]} Rc8 {[%emt 0:10:07]} 12. Rc1 {[%emt 0:05:16]} b6 {[%emt 0:08:37]} 13. Nxc6 {[%emt 0:02:14]} Rxc6 {[%emt 0:00:01]} 14. Qf3 {[%emt 0:00:10]} Qd7 {[%emt 0:00:46]} 15. cxd5 {[%emt 0:02:55]} Nxd5 {[%emt 0:01:59]} 16. Ne2 {[%emt 0:15:50]} Bf6 {[%emt 0:08:44]} 17. d4 {[%emt 0:17:37]} Rfc8 {[%emt 0:06:13]} 18. e4 {[%emt 0:01:39]} Ne7 {[%emt 0:00:30]} 19. Rcd1 {[%emt 0:02:30]} cxd4 {[%emt 0:01:56]} 20. Qg4 {[%emt 0:17:47]} Rd6 {[%emt 0:10:35]} 21. Ba3 {[%emt 0:00:04]} e5 {[%emt 0:00:25]} 22. Qg3 {[%emt 0:00:06]} Re6 {[%emt 0:02:05]} 23. f4 {[%emt 0:01:19]} exf4 {[%emt 0:02:54]} 24. Nxf4 {[%emt 0:00:01]} Be5 {[%emt 0:00:07]} 25. Qd3 {[%emt 0:00:06]} Rf6 {[%emt 0:04:08]} 26. Ne2 {[%emt 0:00:11]} Rxf1+ {[%emt 0:03:11]} 27. Rxf1 {[%emt 0:00:01]} b5 {[%emt 0:01:33]} 28. h3 {[%emt 0:01:07]} h6 {[%emt 0:00:46]} 29. Rd1 {[%emt 0:00:37]} Nc6 {[%emt 0:00:42]} 30. Rc1 {[%emt 0:01:40]} Rd8 {[%emt 0:01:12]} 31. Bc5 {[%emt 0:00:18]} Bf6 {[%emt 0:01:00]} 32. Kh1 {[%emt 0:00:53]} Qb7 {[%emt 0:00:45]} 33. Rf1 {[%emt 0:02:49]} Ne5 {[%emt 0:01:34]} 34. Qg3 {[%emt 0:00:17]} d3 {[%emt 0:00:34]} 35. Nc3 {[%emt 0:00:05]} d2 {[%emt 0:03:22]} 36. Rxf6 {[%emt 0:01:19]} Rd3 {[%emt 0:01:44]} 37. Qxe5 {[%emt 0:00:08]} d1=Q+ {[%emt 0:00:15]} 38. Nxd1 {[%emt 0:00:04]} Rxd1+ {[%emt 0:00:04]} 39. Kh2 {[%emt 0:00:52]} gxf6 {[%emt 0:00:02]} 40. Qg3+ {[%emt 0:00:09]} Kh7 {[%emt 0:00:50]} 41. Bf8 {[%emt 0:50:07]} 1-0

[Event "FIDE Womens Grand Swiss 2023"]
[Site "Douglas/Isle of Man"]
[Date "2023.11.01"]
[Round "7.10"]
[White "Kamalidenova, Meruert"]
[Black "Ushenina, Anna"]
[Result "0-1"]
[ECO "C42"]
[WhiteElo "2351"]
[BlackElo "2434"]
[Annotator "ChessBase"]
[PlyCount "98"]
[EventDate "2023.10.04"]
[EventType "swiss"]
[EventCountry "GBR"]
[SourceTitle "playchess.com"]
[Source "ChessBase"]
[SourceQuality "1"]
[TimeControl "40/6000+30:20/3000+30:900+30"]

1. e4 {[%emt 0:10:09]} e5 {[%emt 0:10:22]} 2. Nf3 {[%emt 0:00:07]} Nf6 {[%emt 0:00:16]} 3. Nxe5 {[%emt 0:00:10]} d6 {[%emt 0:00:08]} 4. Nf3 {[%emt 0:00:05]} Nxe4 {[%emt 0:00:05]} 5. d4 {[%emt 0:00:08]} d5 {[%emt 0:00:20]} 6. Bd3 {[%emt 0:00:12]} Bd6 {[%emt 0:00:07]} 7. O-O {[%emt 0:00:38]} O-O {[%emt 0:00:29]} 8. c4 {[%emt 0:02:51]} c6 {[%emt 0:00:04]} 9. Re1 {[%emt 0:02:27]} Bf5 {[%emt 0:08:21]} 10. Qb3 {[%emt 0:01:30]} Na6 {[%emt 0:16:01]} 11. Bxe4 {[%emt 0:11:20]} dxe4 {[%emt 0:24:16]} 12. Bg5 {[%emt 0:08:06]} Qc7 {[%emt 0:21:44]} 13. Nh4 {[%emt 0:07:59]} Be6 {[%emt 0:01:26]} 14. g3 {[%emt 0:07:01]} f5 {[%emt 0:04:45]} 15. Nc3 {[%emt 0:09:02]} Qf7 {[%emt 0:07:05]} 16. d5 {[%emt 0:03:49]} cxd5 {[%emt 0:00:02]} 17. cxd5 {[%emt 0:00:47]} Bd7 {[%emt 0:00:07]} 18. Ng2 {[%emt 0:07:30]} Nc5 {[%emt 0:00:20]} 19. Qa3 {[%emt 0:00:30]} Rfc8 {[%emt 0:01:12]} 20. Bf4 {[%emt 0:01:38]} Bf8 {[%emt 0:01:42]} 21. Red1 {[%emt 0:03:59]} Nd3 {[%emt 0:02:23]} 22. Qb3 {[%emt 0:00:39]} Nc5 {[%emt 0:00:12]} 23. Qc2 {[%emt 0:02:42]} b5 {[%emt 0:02:26]} 24. Qd2 {[%emt 0:09:47]} b4 {[%emt 0:01:36]} 25. Ne2 {[%emt 0:00:11]} Nd3 {[%emt 0:00:02]} 26. d6 {[%emt 0:03:06]} Qf6 {[%emt 0:00:12]} 27. Nc1 {[%emt 0:01:00]} Nxb2 {[%emt 0:01:00]} 28. Bg5 {[%emt 0:00:27]} Qe5 {[%emt 0:00:39]} 29. Bf4 {[%emt 0:00:14]} Qf6 {[%emt 0:01:50]} 30. Bg5 {[%emt 0:00:08]} Qc3 {[%emt 0:03:47]} 31. Qd5+ {[%emt 0:00:52]} Kh8 {[%emt 0:00:01]} 32. Ne2 {[%emt 0:01:09]} Qc4 {[%emt 0:00:16]} 33. Ne3 {[%emt 0:01:36]} Qxe2 {[%emt 0:00:30]} 34. Rd2 {[%emt 0:00:34]} Qh5 {[%emt 0:00:12]} 35. Rxb2 {[%emt 0:06:35]} Qxg5 {[%emt 0:00:04]} 36. Rxb4 {[%emt 0:00:10]} Qf6 {[%emt 0:00:34]} 37. Rd1 {[%emt 0:00:15]} Qe6 {[%emt 0:02:44]} 38. Qa5 {[%emt 0:01:15]} Rc6 {[%emt 0:00:31]} 39. Rbd4 {[%emt 0:00:12]} h6 {[%emt 0:00:49]} 40. Rd5 {[%emt 0:00:56]} g6 {[%emt 0:00:15]} 41. h4 {[%emt 0:52:07]} Bg7 {[%emt 0:38:29]} 42. h5 {[%emt 0:00:00]} f4 {[%emt 0:00:36]} 43. gxf4 {[%emt 0:00:00]} Rf8 {[%emt 0:00:34]} 44. Qxa7 {[%emt 0:00:00]} Rxf4 {[%emt 0:00:39]} 45. Rb5 {[%emt 0:00:00]} gxh5 {[%emt 0:02:17]} 46. Rb7 {[%emt 0:00:00]} Rf7 {[%emt 0:00:28]} 47. a4 {[%emt 0:00:00]} Be5 {[%emt 0:06:00]} 48. a5 {[%emt 0:00:00]} Qh3 {[%emt 0:00:49]} 49. Qa8+ {[%emt 0:00:00]} Kh7 {[%emt 0:00:11]} 0-1

[Event "FIDE Womens Grand Swiss 2023"]
[Site "Douglas/Isle of Man"]
[Date "2023.11.01"]
[Round "7.11"]
[White "Paehtz, Elisabeth"]
[Black "Narva, Mai"]
[Result "1/2-1/2"]
[ECO "B30"]
[WhiteElo "2484"]
[BlackElo "2399"]
[Annotator "ChessBase"]
[PlyCount "90"]
[EventDate "2023.10.04"]
[EventType "swiss"]
[EventCountry "GBR"]
[SourceTitle "playchess.com"]
[Source "ChessBase"]
[SourceQuality "1"]
[TimeControl "40/6000+30:20/3000+30:900+30"]

1. e4 {[%emt 0:10:10]} c5 {[%emt 0:10:12]} 2. Nf3 {[%emt 0:00:07]} Nc6 {[%emt 0:00:14]} 3. Bc4 {[%emt 0:00:04]} e6 {[%emt 0:09:34]} 4. O-O {[%emt 0:00:27]} Nge7 {[%emt 0:17:45]} 5. Re1 {[%emt 0:01:30]} Ng6 {[%emt 0:02:55]} 6. c3 {[%emt 0:04:00]} Be7 {[%emt 0:02:01]} 7. d4 {[%emt 0:00:39]} d5 {[%emt 0:02:08]} 8. exd5 {[%emt 0:10:45]} exd5 {[%emt 0:00:13]} 9. Bf1 {[%emt 0:02:55]} cxd4 {[%emt 0:11:17]} 10. Nxd4 {[%emt 0:02:31]} O-O {[%emt 0:01:19]} 11. Be3 {[%emt 0:05:25]} Nce5 {[%emt 0:08:17]} 12. Nd2 {[%emt 0:02:33]} Ng4 {[%emt 0:02:59]} 13. N2f3 {[%emt 0:00:10]} Bd6 {[%emt 0:03:58]} 14. Qd2 {[%emt 0:09:49]} Bd7 {[%emt 0:10:18]} 15. Bg5 {[%emt 0:13:30]} Qa5 {[%emt 0:10:09]} 16. h3 {[%emt 0:03:04]} N4e5 {[%emt 0:09:31]} 17. Nxe5 {[%emt 0:01:58]} Nxe5 {[%emt 0:00:32]} 18. Nb3 {[%emt 0:01:45]} Qc7 {[%emt 0:00:20]} 19. Qxd5 {[%emt 0:00:54]} Be6 {[%emt 0:00:23]} 20. Qd1 {[%emt 0:05:57]} h6 {[%emt 0:00:39]} 21. Bf4 {[%emt 0:02:07]} a6 {[%emt 0:01:59]} 22. Nd4 {[%emt 0:00:20]} Bd7 {[%emt 0:00:07]} 23. Bg3 {[%emt 0:01:19]} Rae8 {[%emt 0:01:31]} 24. Qb3 {[%emt 0:05:18]} Kh8 {[%emt 0:00:16]} 25. Qd5 {[%emt 0:02:07]} f5 {[%emt 0:01:10]} 26. Bxe5 {[%emt 0:03:48]} Bxe5 {[%emt 0:00:30]} 27. Rad1 {[%emt 0:01:32]} f4 {[%emt 0:00:58]} 28. Nf3 {[%emt 0:06:26]} Bc6 {[%emt 0:00:13]} 29. Qd3 {[%emt 0:00:14]} Bf6 {[%emt 0:00:28]} 30. Qg6 {[%emt 0:00:38]} Qf7 {[%emt 0:01:23]} 31. Rxe8 {[%emt 0:05:20]} Qxe8 {[%emt 0:02:05]} 32. Qxe8 {[%emt 0:03:47]} Rxe8 {[%emt 0:00:05]} 33. Nd4 {[%emt 0:00:16]} Bd5 {[%emt 0:00:45]} 34. a3 {[%emt 0:00:59]} b5 {[%emt 0:00:42]} 35. Bd3 {[%emt 0:02:10]} Rd8 {[%emt 0:00:23]} 36. Bg6 {[%emt 0:00:47]} Kg8 {[%emt 0:00:26]} 37. Re1 {[%emt 0:01:56]} Bxd4 {[%emt 0:00:35]} 38. cxd4 {[%emt 0:00:05]} Bf7 {[%emt 0:00:11]} 39. Bxf7+ {[%emt 0:01:01]} Kxf7 {[%emt 0:00:04]} 40. Rd1 {[%emt 0:00:09]} Rc8 {[%emt 0:01:11]} 41. Rd2 {[%emt 0:50:51]} Rc1+ {[%emt 0:50:31]} 42. Kh2 {[%emt 0:00:02]} Ke6 {[%emt 0:00:34]} 43. g3 {[%emt 0:00:00]} fxg3+ {[%emt 0:00:00]} 44. Kxg3 {[%emt 0:00:00]} Kd5 {[%emt 0:00:00]} 45. Kf4 {[%emt 0:00:00]} Rc4 {[%emt 0:00:01]} 1/2-1/2

[Event "FIDE Womens Grand Swiss 2023"]
[Site "Douglas/Isle of Man"]
[Date "2023.11.01"]
[Round "7.12"]
[White "Injac, Teodora"]
[Black "Batsiashvili, Nino"]
[Result "1/2-1/2"]
[ECO "E15"]
[WhiteElo "2426"]
[BlackElo "2475"]
[Annotator "ChessBase"]
[PlyCount "99"]
[EventDate "2023.10.04"]
[EventType "swiss"]
[EventCountry "GBR"]
[SourceTitle "playchess.com"]
[Source "ChessBase"]
[SourceQuality "1"]
[TimeControl "40/6000+30:20/3000+30:900+30"]

1. d4 {[%emt 0:10:03]} Nf6 {[%emt 0:10:05]} 2. Nf3 {[%emt 0:00:12]} e6 {[%emt 0:00:17]} 3. c4 {[%emt 0:00:13]} b6 {[%emt 0:00:04]} 4. g3 {[%emt 0:02:26]} Bb4+ {[%emt 0:00:09]} 5. Bd2 {[%emt 0:01:17]} Bxd2+ {[%emt 0:00:12]} 6. Qxd2 {[%emt 0:02:11]} Ba6 {[%emt 0:00:07]} 7. b3 O-O {[%emt 0:00:30]} 8. Bg2 d5 {[%emt 0:00:30]} 9. Nc3 c5 {[%emt 0:00:30]} 10. O-O Nc6 {[%emt 0:00:30]} 11. Rfd1 dxc4 {[%emt 0:00:30]} 12. Ne5 Nxd4 {[%emt 0:00:30]} 13. e3 Nf5 {[%emt 0:00:30]} 14. Nxc4 Qxd2 {[%emt 0:00:30]} 15. Rxd2 Rad8 {[%emt 0:00:30]} 16. Rad1 Rxd2 {[%emt 0:00:30]} 17. Rxd2 Rc8 {[%emt 0:00:30]} 18. Ne5 Ne7 {[%emt 0:00:30]} 19. g4 Nfd5 {[%emt 0:00:30]} 20. Nxd5 exd5 {[%emt 0:00:30]} 21. Bxd5 Nxd5 {[%emt 0:00:30]} 22. Rxd5 f6 {[%emt 0:00:30]} 23. Nc4 b5 {[%emt 0:00:30]} 24. Na3 Bb7 {[%emt 0:00:30]} 25. Rd7 Bc6 {[%emt 0:00:30]} 26. Rxa7 c4 {[%emt 0:00:30]} 27. bxc4 bxc4 {[%emt 0:00:30]} 28. Nb1 Bf3 {[%emt 0:00:30]} 29. Nc3 Bxg4 {[%emt 0:00:30]} 30. Kg2 Rd8 {[%emt 0:00:30]} 31. Kg3 Be6 {[%emt 0:00:30]} 32. Nb5 Rd1 {[%emt 0:00:30]} 33. Nd4 Rg1+ {[%emt 0:00:30]} 34. Kf4 g5+ {[%emt 0:00:30]} 35. Ke4 Bh3 {[%emt 0:00:30]} 36. Rc7 Rg2 {[%emt 0:00:30]} 37. f4 Rxh2 {[%emt 0:00:30]} 38. a4 Ra2 {[%emt 0:00:30]} 39. Rxc4 gxf4 {[%emt 0:00:30]} 40. exf4 Kg7 {[%emt 0:00:30]} 41. Nf5+ Kg6 {[%emt 0:50:30]} 42. Ne7+ Kf7 {[%emt 0:00:30]} 43. Nf5 Bg2+ {[%emt 0:00:30]} 44. Kd4 Bf1 {[%emt 0:00:30]} 45. Rc7+ Kf8 {[%emt 0:00:30]} 46. Rc8+ Kf7 {[%emt 0:00:30]} 47. Rc7+ Kf8 {[%emt 0:00:30]} 48. Rc8+ Kf7 {[%emt 0:00:30]} 49. Rc7+ Kg8 {[%emt 0:00:30]} 50. Rc8+ 1/2-1/2

[Event "FIDE Womens Grand Swiss 2023"]
[Site "Douglas/Isle of Man"]
[Date "2023.11.01"]
[Round "7.13"]
[White "Cramling, Pia"]
[Black "Danielian, Elina"]
[Result "1-0"]
[ECO "A34"]
[WhiteElo "2446"]
[BlackElo "2416"]
[Annotator "ChessBase"]
[PlyCount "81"]
[EventDate "2023.10.04"]
[EventType "swiss"]
[EventCountry "GBR"]
[SourceTitle "playchess.com"]
[Source "ChessBase"]
[SourceQuality "1"]
[TimeControl "40/6000+30:20/3000+30:900+30"]

1. Nf3 {[%emt 0:10:05]} Nf6 {[%emt 0:10:40]} 2. c4 {[%emt 0:00:22]} c5 {[%emt 0:00:18]} 3. g3 {[%emt 0:01:10]} Nc6 {[%emt 0:01:38]} 4. Bg2 {[%emt 0:01:32]} e5 {[%emt 0:02:51]} 5. Nc3 {[%emt 0:00:46]} g6 {[%emt 0:03:46]} 6. d3 {[%emt 0:02:20]} Bg7 {[%emt 0:00:21]} 7. Nd2 {[%emt 0:04:06]} d6 {[%emt 0:04:26]} 8. Nf1 {[%emt 0:00:21]} O-O {[%emt 0:02:20]} 9. Ne3 {[%emt 0:00:16]} a6 {[%emt 0:01:33]} 10. a3 {[%emt 0:03:36]} Rb8 {[%emt 0:02:04]} 11. Rb1 {[%emt 0:05:04]} Ne7 {[%emt 0:16:11]} 12. b4 {[%emt 0:11:49]} cxb4 {[%emt 0:00:04]} 13. axb4 {[%emt 0:00:34]} Be6 {[%emt 0:04:56]} 14. b5 {[%emt 0:18:12]} d5 {[%emt 0:02:21]} 15. cxd5 {[%emt 0:05:51]} Nfxd5 {[%emt 0:02:10]} 16. Ncxd5 {[%emt 0:00:12]} Nxd5 {[%emt 0:00:05]} 17. Nxd5 {[%emt 0:00:30]} Bxd5 {[%emt 0:00:06]} 18. O-O {[%emt 0:00:59]} a5 {[%emt 0:02:30]} 19. Qa4 {[%emt 0:09:53]} Bxg2 {[%emt 0:08:35]} 20. Kxg2 {[%emt 0:00:02]} h5 {[%emt 0:08:39]} 21. b6 {[%emt 0:02:59]} Ra8 {[%emt 0:02:03]} 22. Be3 {[%emt 0:01:03]} f5 {[%emt 0:11:15]} 23. f3 {[%emt 0:03:06]} Qe8 {[%emt 0:10:14]} 24. Rb5 {[%emt 0:03:03]} Kh7 {[%emt 0:01:02]} 25. Rc1 {[%emt 0:05:45]} e4 {[%emt 0:00:11]} 26. dxe4 {[%emt 0:00:50]} fxe4 {[%emt 0:00:02]} 27. fxe4 {[%emt 0:00:46]} h4 {[%emt 0:11:33]} 28. Rc7 {[%emt 0:03:10]} Qe6 {[%emt 0:01:05]} 29. Rd5 {[%emt 0:04:06]} Rf7 {[%emt 0:01:14]} 30. Rxf7 {[%emt 0:02:43]} Qxf7 {[%emt 0:00:37]} 31. Rd7 {[%emt 0:00:55]} Qe6 {[%emt 0:00:19]} 32. Qd4 {[%emt 0:01:34]} h3+ {[%emt 0:00:25]} 33. Kg1 {[%emt 0:00:11]} Rg8 {[%emt 0:00:07]} 34. Rxb7 {[%emt 0:03:49]} Qb3 {[%emt 0:00:24]} 35. Kf2 {[%emt 0:01:23]} Qb1 {[%emt 0:00:54]} 36. Qd7 {[%emt 0:01:13]} Rf8+ {[%emt 0:00:54]} 37. Bf4 {[%emt 0:00:07]} Qb2 {[%emt 0:00:11]} 38. Qxg7+ {[%emt 0:01:06]} Qxg7 {[%emt 0:00:06]} 39. Rxg7+ {[%emt 0:00:03]} Kxg7 {[%emt 0:00:07]} 40. b7 {[%emt 0:00:04]} g5 {[%emt 0:00:13]} 41. b8=Q {[%emt 0:50:09]} 1-0